[Event "European School-ch 2019"]
[Site "Mamaia"]
[Date "2019.06.01"]
[Round "2.9"]
[White "Ochedzan, Tymon"]
[Black "Tinarlioglu, Emre"]
[Result "0-1"]
[ECO "B96"]
[WhiteElo "2064"]
[BlackElo "1907"]
[Annotator "NA"]
[PlyCount "80"]
[EventDate "2019.05.31"]
[EventType "swiss"]
[EventCountry "ROU"]
[SourceTitle "playchess.com"]
[Source "ChessBase"]
[SourceQuality "1"]
[TimeControl "40/5400+30:1800+30"]

1. e4 {[%emt 0:00:00]} c5 {[%emt 0:00:00]} 2. Nf3 {[%emt 0:00:00]} d6 {[%emt 0:00:00]} 3. d4 {[%emt 0:00:07]} cxd4 {[%emt 0:00:00]} 4. Nxd4 {[%emt 0:00:06]} Nf6 {[%emt 0:00:00]} 5. Nc3 {[%emt 0:00:15]} a6 {[%emt 0:00:00]} 6. Bg5 {[%emt 0:00:32]} e6 {[%emt 0:00:04]} 7. f4 {[%emt 0:00:40]} h6 {[%emt 0:00:15]} 8. Bh4 {[%emt 0:01:29]} Qb6 {[%emt 0:00:07]} 9. a3 {[%emt 0:01:19]} Nc6 {[%emt 0:02:03]} 10. Bf2 {[%emt 0:04:30]} Qc7 {[%emt 0:01:02]} 11. Qf3 {[%emt 0:06:28]} Nxd4 {[%emt 0:03:08]} 12. Bxd4 {[%emt 0:00:05]} e5 {[%emt 0:00:04]} 13. Be3 {[%emt 0:02:55]} Be7 {[%emt 0:07:43]} 14. f5 {[%emt 0:02:16]} b5 {[%emt 0:02:23]} 15. O-O-O {[%emt 0:08:03]} Bb7 {[%emt 0:01:53]} 16. g4 {[%emt 0:05:42]} Rc8 {[%emt 0:19:06]} 17. Bd3 {[%emt 0:03:01]} Qa5 {[%emt 0:02:37]} 18. Bd2 {[%emt 0:04:26]} b4 {[%emt 0:02:35]} 19. axb4 {[%emt 0:13:33]} Qa1+ {[%emt 0:02:22]} 20. Nb1 {[%emt 0:00:38]} d5 {[%emt 0:00:50]} 21. exd5 {[%emt 0:05:20]} Bxd5 {[%emt 0:00:28]} 22. Qe2 {[%emt 0:03:54]} e4 {[%emt 0:18:00]} 23. Bxa6 {[%emt 0:04:26]} Ba2 {[%emt 0:02:59]} 24. Bc3 {[%emt 0:04:35]} Qxb1+ {[%emt 0:03:24]} 25. Kd2 {[%emt 0:00:50]} Rd8+ {[%emt 0:00:16]} 26. Ke3 {[%emt 0:05:28]} Nd5+ {[%emt 0:02:08]} 27. Kxe4 {[%emt 0:02:48]} Nxc3+ {[%emt 0:02:54]} 28. bxc3 {[%emt 0:00:09]} Bd5+ {[%emt 0:00:07]} 29. Kf4 {[%emt 0:01:24]} Qa2 {[%emt 0:01:44]} 30. Ra1 {[%emt 0:04:14]} Qb2 {[%emt 0:04:08]} 31. Rhe1 {[%emt 0:01:51]} O-O {[%emt 0:00:46]} 32. Qxe7 {[%emt 0:00:09]} Qxc3 {[%emt 0:00:22]} 33. Bd3 {[%emt 0:01:29]} Qd2+ {[%emt 0:00:42]} 34. Qe3 {[%emt 0:04:25]} Qxh2+ {[%emt 0:00:09]} 35. Qg3 {[%emt 0:00:08]} g5+ {[%emt 0:00:25]} 36. fxg6 {[%emt 0:00:49]} fxg6+ {[%emt 0:00:06]} 37. Bf5 {[%emt 0:00:13]} g5+ {[%emt 0:00:06]} 38. Ke3 {[%emt 0:00:39]} Qxg3+ {[%emt 0:00:06]} 39. Kd4 {[%emt 0:00:11]} Be6+ {[%emt 0:00:21]} 40. Ke4 {[%emt 0:00:00]} Qf4# {[%emt 0:00:00]} 0-1

[Event "European School-ch 2019"]
[Site "Mamaia"]
[Date "2019.06.01"]
[Round "2.10"]
[White "Bonciu, David"]
[Black "Balan, Bogdan"]
[Result "0-1"]
[ECO "B23"]
[WhiteElo "1886"]
[BlackElo "2027"]
[Annotator "NA"]
[PlyCount "60"]
[EventDate "2019.05.31"]
[EventType "swiss"]
[EventCountry "ROU"]
[SourceTitle "playchess.com"]
[Source "ChessBase"]
[SourceQuality "1"]
[TimeControl "40/5400+30:1800+30"]

1. e4 {[%emt 0:00:00]} c5 {[%emt 0:00:00]} 2. Nc3 {[%emt 0:00:00]} d6 {[%emt 0:00:00]} 3. d4 {[%emt 0:00:00]} cxd4 {[%emt 0:00:00]} 4. Qxd4 {[%emt 0:00:00]} Nc6 {[%emt 0:02:00]} 5. Qd2 {[%emt 0:00:00]} Nf6 {[%emt 0:00:27]} 6. b3 {[%emt 0:00:13]} g6 {[%emt 0:03:20]} 7. Bb2 {[%emt 0:00:06]} Bg7 {[%emt 0:00:11]} 8. O-O-O {[%emt 0:01:55]} O-O {[%emt 0:00:25]} 9. f3 {[%emt 0:02:33]} a6 {[%emt 0:02:08]} 10. Nge2 {[%emt 0:09:18]} b5 {[%emt 0:01:55]} 11. Kb1 {[%emt 0:03:05]} Nb8 {[%emt 0:09:31]} 12. g4 {[%emt 0:21:20]} Nbd7 {[%emt 0:02:20]} 13. g5 {[%emt 0:03:01]} Ne8 {[%emt 0:02:16]} 14. h4 {[%emt 0:22:13]} Bb7 {[%emt 0:05:51]} 15. h5 {[%emt 0:08:09]} Nc7 {[%emt 0:20:32]} 16. Nf4 {[%emt 0:07:51]} Ne5 {[%emt 0:01:24]} 17. hxg6 {[%emt 0:03:30]} hxg6 {[%emt 0:02:08]} 18. Qh2 {[%emt 0:08:54]} Re8 {[%emt 0:09:26]} 19. Qh7+ {[%emt 0:05:31]} Kf8 {[%emt 0:00:03]} 20. Ncd5 {[%emt 0:01:10]} Nxd5 {[%emt 0:03:04]} 21. exd5 {[%emt 0:00:11]} e6 {[%emt 0:08:46]} 22. dxe6 {[%emt 0:01:11]} Qxg5 {[%emt 0:00:52]} 23. exf7 {[%emt 0:00:43]} Kxf7 {[%emt 0:00:56]} 24. Nd3 {[%emt 0:00:34]} Bxf3 {[%emt 0:03:40]} 25. Nxe5+ {[%emt 0:00:23]} Rxe5 {[%emt 0:06:52]} 26. Bc4+ {[%emt 0:00:34]} bxc4 {[%emt 0:00:55]} 27. Rdf1 {[%emt 0:00:34]} Rh8 {[%emt 0:02:56]} 28. Rxf3+ {[%emt 0:00:07]} Ke6 {[%emt 0:00:16]} 29. Qxh8 {[%emt 0:00:45]} Bxh8 {[%emt 0:00:02]} 30. Bxe5 {[%emt 0:00:20]} Qxe5 {[%emt 0:00:43]} 0-1

[Event "European School-ch 2019"]
[Site "Mamaia"]
[Date "2019.06.01"]
[Round "2.11"]
[White "Ovcharenko, Hryhoriy"]
[Black "Neshev, Nikola"]
[Result "0-1"]
[ECO "C47"]
[WhiteElo "1740"]
[BlackElo "1370"]
[Annotator "NA"]
[PlyCount "100"]
[EventDate "2019.05.31"]
[EventType "swiss"]
[EventCountry "ROU"]
[SourceTitle "playchess.com"]
[Source "ChessBase"]
[SourceQuality "1"]
[TimeControl "40/5400+30:1800+30"]

1. e4 {[%emt 0:00:00]} e5 {[%emt 0:00:10]} 2. Nf3 {[%emt 0:00:00]} Nc6 {[%emt 0:00:10]} 3. Bc4 {[%emt 0:00:27]} Nf6 {[%emt 0:00:08]} 4. Nc3 {[%emt 0:00:16]} Bb4 {[%emt 0:01:33]} 5. d3 {[%emt 0:01:03]} d5 {[%emt 0:00:27]} 6. Bxd5 {[%emt 0:07:39]} Nxd5 {[%emt 0:00:17]} 7. exd5 {[%emt 0:00:30]} Qxd5 {[%emt 0:00:30]} 8. Bd2 {[%emt 0:00:30]} Bxc3 {[%emt 0:00:30]} 9. Bxc3 {[%emt 0:00:30]} Bg4 {[%emt 0:00:30]} 10. h3 {[%emt 0:00:30]} Bxf3 {[%emt 0:00:30]} 11. Qxf3 {[%emt 0:00:30]} Qxf3 {[%emt 0:00:30]} 12. gxf3 {[%emt 0:00:30]} Nd4 {[%emt 0:00:30]} 13. Bxd4 {[%emt 0:02:00]} exd4 {[%emt 0:03:55]} 14. Kd2 {[%emt 0:01:15]} Kd7 {[%emt 0:00:49]} 15. Rhg1 {[%emt 0:02:04]} g6 {[%emt 0:00:08]} 16. Rg5 {[%emt 0:06:02]} c6 {[%emt 0:01:42]} 17. f4 {[%emt 0:01:33]} Rhe8 {[%emt 0:05:34]} 18. h4 {[%emt 0:01:24]} Re7 {[%emt 0:01:10]} 19. Re1 {[%emt 0:00:54]} Rae8 {[%emt 0:00:41]} 20. Rxe7+ {[%emt 0:00:18]} Rxe7 {[%emt 0:04:21]} 21. h5 {[%emt 0:08:20]} Kd6 {[%emt 0:03:25]} 22. c3 {[%emt 0:13:56]} dxc3+ {[%emt 0:02:33]} 23. bxc3 {[%emt 0:00:09]} f6 {[%emt 0:04:20]} 24. Rg1 {[%emt 0:01:09]} gxh5 {[%emt 0:02:46]} 25. Rh1 {[%emt 0:00:47]} Ke6 {[%emt 0:01:30]} 26. Rxh5 {[%emt 0:00:39]} Kd7 {[%emt 0:00:57]} 27. d4 {[%emt 0:03:22]} Ke8 {[%emt 0:00:10]} 28. Rh6 {[%emt 0:01:50]} Rf7 {[%emt 0:00:27]} 29. c4 {[%emt 0:04:43]} Kf8 {[%emt 0:00:24]} 30. Kd3 {[%emt 0:00:50]} Kg7 {[%emt 0:00:16]} 31. Rh1 {[%emt 0:00:24]} Kg6 {[%emt 0:01:41]} 32. d5 {[%emt 0:01:39]} c5 {[%emt 0:00:40]} 33. Ke4 {[%emt 0:11:46]} Re7+ {[%emt 0:00:10]} 34. Kf3 {[%emt 0:06:48]} f5 {[%emt 0:04:14]} 35. Rg1+ {[%emt 0:07:14]} Kf6 {[%emt 0:00:50]} 36. Rh1 {[%emt 0:00:25]} Kg7 {[%emt 0:05:13]} 37. Rg1+ {[%emt 0:00:15]} Kf8 {[%emt 0:01:37]} 38. Rg5 {[%emt 0:00:22]} Rf7 {[%emt 0:00:07]} 39. Kg3 {[%emt 0:04:19]} Rg7 {[%emt 0:03:14]} 40. Kh4 {[%emt 0:00:00]} Rxg5 {[%emt 0:00:00]} 41. Kxg5 {[%emt 0:00:41]} b5 {[%emt 0:01:23]} 42. Kxf5 {[%emt 0:02:05]} bxc4 {[%emt 0:00:25]} 43. Ke4 {[%emt 0:00:19]} h5 {[%emt 0:00:10]} 44. f5 {[%emt 0:00:45]} Ke7 {[%emt 0:01:29]} 45. Ke5 {[%emt 0:00:28]} c3 {[%emt 0:00:22]} 46. d6+ {[%emt 0:00:26]} Ke8 {[%emt 0:00:10]} 47. Ke6 {[%emt 0:02:50]} c2 {[%emt 0:00:12]} 48. f6 {[%emt 0:00:13]} c1=Q {[%emt 0:00:14]} 49. d7+ {[%emt 0:01:03]} Kd8 {[%emt 0:00:10]} 50. f4 {[%emt 0:00:05]} Qxf4 {[%emt 0:00:44]} 0-1

[Event "European School-ch 2019"]
[Site "Mamaia"]
[Date "2019.06.01"]
[Round "2.12"]
[White "Andreev, Konstantin"]
[Black "Silich, Yahor"]
[Result "0-1"]
[ECO "E68"]
[WhiteElo "2276"]
[BlackElo "2082"]
[Annotator "ChessBase"]
[PlyCount "98"]
[EventDate "2019.05.31"]
[EventType "swiss"]
[EventCountry "ROU"]
[SourceTitle "playchess.com"]
[Source "ChessBase"]
[SourceQuality "1"]
[TimeControl "40/5400+30:1800+30"]

1. Nf3 {[%emt 0:00:00]} Nf6 {[%emt 0:00:00]} 2. c4 {[%emt 0:00:00]} g6 {[%emt 0:00:06]} 3. d4 {[%emt 0:00:00]} Bg7 {[%emt 0:00:04]} 4. g3 {[%emt 0:00:00]} O-O {[%emt 0:00:34]} 5. Bg2 {[%emt 0:00:00]} d6 {[%emt 0:00:32]} 6. O-O {[%emt 0:00:03]} Nbd7 {[%emt 0:00:29]} 7. Nc3 {[%emt 0:00:09]} e5 {[%emt 0:00:43]} 8. e4 {[%emt 0:00:09]} exd4 {[%emt 0:00:32]} 9. Nxd4 {[%emt 0:00:11]} Re8 {[%emt 0:00:34]} 10. Re1 {[%emt 0:00:10]} Nc5 {[%emt 0:00:55]} 11. Qc2 {[%emt 0:10:32]} Bd7 {[%emt 0:10:05]} 12. Nb3 {[%emt 0:03:01]} Ne6 {[%emt 0:12:34]} 13. Bd2 {[%emt 0:03:11]} Ng4 {[%emt 0:05:28]} 14. h3 {[%emt 0:14:10]} Ne5 {[%emt 0:00:28]} 15. Ne2 {[%emt 0:04:34]} b5 {[%emt 0:15:55]} 16. cxb5 {[%emt 0:06:32]} Bxb5 {[%emt 0:00:14]} 17. Bc3 {[%emt 0:04:43]} c5 {[%emt 0:05:34]} 18. f4 {[%emt 0:03:24]} Nd3 {[%emt 0:04:01]} 19. Red1 {[%emt 0:00:36]} c4 {[%emt 0:03:44]} 20. Nd2 {[%emt 0:05:18]} Qb6+ {[%emt 0:06:21]} 21. Kh2 {[%emt 0:00:26]} Qe3 {[%emt 0:11:21]} 22. Nf1 {[%emt 0:20:59]} Qf2 {[%emt 0:02:57]} 23. Bxg7 {[%emt 0:02:07]} Kxg7 {[%emt 0:01:21]} 24. Qd2 {[%emt 0:01:21]} Qc5 {[%emt 0:04:31]} 25. Ne3 {[%emt 0:01:18]} f6 {[%emt 0:02:33]} 26. Nd5 {[%emt 0:01:15]} Rf8 {[%emt 0:03:37]} 27. Rab1 {[%emt 0:04:16]} h5 {[%emt 0:01:15]} 28. f5 {[%emt 0:02:47]} Ng5 {[%emt 0:01:47]} 29. h4 {[%emt 0:00:47]} Ne5 {[%emt 0:03:49]} 30. Nd4 {[%emt 0:03:32]} Qxd4 {[%emt 0:01:52]} 31. Qxd4 {[%emt 0:00:43]} Ngf3+ {[%emt 0:00:01]} 32. Bxf3 {[%emt 0:00:35]} Nxf3+ {[%emt 0:00:00]} 33. Kg2 {[%emt 0:00:14]} Nxd4 {[%emt 0:00:03]} 34. Rxd4 {[%emt 0:00:09]} gxf5 {[%emt 0:01:40]} 35. exf5 {[%emt 0:00:45]} Rac8 {[%emt 0:00:21]} 36. Nf4 {[%emt 0:00:54]} Rfe8 {[%emt 0:01:20]} 37. Rxd6 {[%emt 0:00:57]} Rc6 {[%emt 0:00:33]} 38. Rd7+ {[%emt 0:03:27]} Kh6 {[%emt 0:00:32]} 39. a4 {[%emt 0:02:05]} Ba6 {[%emt 0:00:31]} 40. Rxa7 {[%emt 0:00:00]} Rb6 {[%emt 0:00:00]} 41. a5 {[%emt 0:10:10]} Bb7+ {[%emt 0:00:55]} 42. Kf2 {[%emt 0:10:33]} Rb3 {[%emt 0:02:54]} 43. Re1 {[%emt 0:04:34]} Rf3+ {[%emt 0:07:41]} 44. Kg2 {[%emt 0:02:04]} Rxe1 {[%emt 0:00:13]} 45. Rxb7 {[%emt 0:00:18]} Rb3 {[%emt 0:00:23]} 46. a6 {[%emt 0:02:38]} Ra1 {[%emt 0:03:04]} 47. Ng6 {[%emt 0:01:35]} Ra5 {[%emt 0:12:19]} 48. Rf7 {[%emt 0:01:06]} Rxb2+ {[%emt 0:00:03]} 49. Kh3 {[%emt 0:00:18]} Ra1 {[%emt 0:00:33]} 0-1

[Event "European School-ch 2019"]
[Site "Mamaia"]
[Date "2019.06.01"]
[Round "2.13"]
[White "Creanga, Robert-Ionut"]
[Black "Triboi, Alexander"]
[Result "1/2-1/2"]
[ECO "A65"]
[WhiteElo "2128"]
[BlackElo "1748"]
[Annotator "ChessBase"]
[PlyCount "43"]
[EventDate "2019.05.31"]
[EventType "swiss"]
[EventCountry "ROU"]
[SourceTitle "playchess.com"]
[Source "ChessBase"]
[SourceQuality "1"]
[TimeControl "40/5400+30:1800+30"]

1. d4 {[%emt 0:00:00]} Nf6 {[%emt 0:00:00]} 2. c4 {[%emt 0:00:00]} e6 {[%emt 0:00:00]} 3. Nc3 {[%emt 0:00:00]} c5 {[%emt 0:00:00]} 4. d5 {[%emt 0:00:00]} exd5 {[%emt 0:00:00]} 5. cxd5 {[%emt 0:00:10]} d6 {[%emt 0:00:00]} 6. e4 {[%emt 0:01:44]} g6 {[%emt 0:00:00]} 7. f3 {[%emt 0:01:32]} Bg7 {[%emt 0:00:00]} 8. Nge2 {[%emt 0:02:08]} h5 {[%emt 0:01:22]} 9. Bg5 {[%emt 0:07:27]} O-O {[%emt 0:03:07]} 10. Ng3 {[%emt 0:01:00]} Qb6 {[%emt 0:06:03]} 11. Qd2 {[%emt 0:03:10]} Nh7 {[%emt 0:02:33]} 12. Bh4 {[%emt 0:06:40]} Nd7 {[%emt 0:22:35]} 13. Be2 {[%emt 0:13:06]} Ne5 {[%emt 0:08:55]} 14. Nf1 {[%emt 0:22:49]} f5 {[%emt 0:03:44]} 15. Bf2 {[%emt 0:17:11]} f4 {[%emt 0:10:23]} 16. Qc2 {[%emt 0:08:08]} Bd7 {[%emt 0:03:17]} 17. Nd2 {[%emt 0:01:48]} Qd8 {[%emt 0:05:19]} 18. a4 {[%emt 0:02:37]} Rb8 {[%emt 0:04:25]} 19. Nb5 {[%emt 0:00:58]} Bxb5 {[%emt 0:01:21]} 20. axb5 {[%emt 0:00:17]} a6 {[%emt 0:01:23]} 21. O-O {[%emt 0:02:26]} a5 {[%emt 0:03:01]} 22. Ra3 {[%emt 0:02:18]} 1/2-1/2

[Event "European School-ch 2019"]
[Site "Mamaia"]
[Date "2019.06.01"]
[Round "2.14"]
[White "Kanli, Alperen"]
[Black "Tashev, Aleksandar"]
[Result "1-0"]
[ECO "B34"]
[WhiteElo "1790"]
[BlackElo "2119"]
[Annotator "ChessBase"]
[PlyCount "91"]
[EventDate "2019.05.31"]
[EventType "swiss"]
[EventCountry "ROU"]
[SourceTitle "playchess.com"]
[Source "ChessBase"]
[SourceQuality "1"]
[TimeControl "40/5400+30:1800+30"]

1. e4 {[%emt 0:00:00]} c5 {[%emt 0:00:00]} 2. Nf3 {[%emt 0:00:00]} Nc6 {[%emt 0:00:00]} 3. d4 {[%emt 0:00:00]} cxd4 {[%emt 0:00:14]} 4. Nxd4 {[%emt 0:00:00]} g6 {[%emt 0:00:27]} 5. Nc3 {[%emt 0:00:51]} Bg7 {[%emt 0:00:33]} 6. Be3 {[%emt 0:00:01]} Nf6 {[%emt 0:00:26]} 7. Nxc6 {[%emt 0:02:54]} bxc6 {[%emt 0:00:33]} 8. e5 {[%emt 0:00:35]} Ng8 {[%emt 0:02:21]} 9. Bd4 {[%emt 0:00:09]} f6 {[%emt 0:03:03]} 10. f4 {[%emt 0:16:39]} Qa5 {[%emt 0:14:34]} 11. Qe2 {[%emt 0:03:27]} c5 {[%emt 0:05:05]} 12. exf6 {[%emt 0:17:19]} Nxf6 {[%emt 0:06:29]} 13. Be5 {[%emt 0:00:21]} O-O {[%emt 0:03:34]} 14. Qf3 {[%emt 0:07:12]} Ba6 {[%emt 0:08:45]} 15. Bxa6 {[%emt 0:01:46]} Qxa6 {[%emt 0:00:11]} 16. Nd5 {[%emt 0:00:01]} Nxd5 {[%emt 0:10:42]} 17. Qxd5+ {[%emt 0:09:31]} e6 {[%emt 0:01:18]} 18. Qd6 {[%emt 0:14:01]} Qc4 {[%emt 0:10:19]} 19. O-O-O {[%emt 0:05:34]} Bxe5 {[%emt 0:08:31]} 20. Qxe5 {[%emt 0:00:06]} Rad8 {[%emt 0:09:59]} 21. Kb1 {[%emt 0:01:32]} Rxf4 {[%emt 0:03:00]} 22. Qc7 {[%emt 0:00:22]} Rdf8 {[%emt 0:01:22]} 23. b3 {[%emt 0:02:46]} Qc3 {[%emt 0:04:43]} 24. Qxd7 {[%emt 0:00:15]} e5 {[%emt 0:00:33]} 25. Qe6+ {[%emt 0:07:17]} Kg7 {[%emt 0:01:14]} 26. Rhe1 {[%emt 0:00:01]} Rf2 {[%emt 0:00:48]} 27. Qxe5+ {[%emt 0:00:55]} Qxe5 {[%emt 0:00:04]} 28. Rxe5 {[%emt 0:00:04]} c4 {[%emt 0:00:29]} 29. Re7+ {[%emt 0:01:36]} Kh6 {[%emt 0:00:48]} 30. bxc4 {[%emt 0:03:23]} Rxg2 {[%emt 0:00:25]} 31. Rdd7 {[%emt 0:00:42]} Rff2 {[%emt 0:00:40]} 32. Rxh7+ {[%emt 0:00:31]} Kg5 {[%emt 0:00:05]} 33. h4+ {[%emt 0:00:59]} Kg4 {[%emt 0:00:09]} 34. Rd4+ {[%emt 0:00:21]} Kg3 {[%emt 0:01:13]} 35. Rd3+ {[%emt 0:01:01]} Kg4 {[%emt 0:00:04]} 36. Rc3 {[%emt 0:00:48]} Rf6 {[%emt 0:00:35]} 37. c5 {[%emt 0:00:12]} Rc6 {[%emt 0:00:10]} 38. Rc4+ {[%emt 0:00:00]} Kh3 {[%emt 0:00:32]} 39. Rxa7 {[%emt 0:02:09]} Re2 {[%emt 0:00:16]} 40. Ra5 {[%emt 0:00:00]} Re5 {[%emt 0:00:00]} 41. Ra3+ {[%emt 0:01:17]} Kg2 {[%emt 0:00:12]} 42. Rac3 {[%emt 0:00:11]} Kf2 {[%emt 0:00:17]} 43. Kb2 {[%emt 0:00:29]} Ke2 {[%emt 0:00:12]} 44. Kb3 {[%emt 0:00:35]} Rf5 {[%emt 0:00:09]} 45. Kb4 {[%emt 0:00:20]} Rf1 {[%emt 0:00:04]} 46. Kb5 {[%emt 0:00:12]} 1-0

[Event "European School-ch 2019"]
[Site "Mamaia"]
[Date "2019.06.01"]
[Round "2.15"]
[White "Levin, Guy"]
[Black "Larichev, Prokhor"]
[Result "1/2-1/2"]
[ECO "A04"]
[WhiteElo "2054"]
[BlackElo "1764"]
[Annotator "NA"]
[PlyCount "170"]
[EventDate "2019.05.31"]
[EventType "swiss"]
[EventCountry "ROU"]
[SourceTitle "playchess.com"]
[Source "ChessBase"]
[SourceQuality "1"]
[TimeControl "40/5400+30:1800+30"]

1. Nf3 {[%emt 0:00:00]} e6 {[%emt 0:00:00]} 2. g3 {[%emt 0:00:00]} Nf6 {[%emt 0:00:38]} 3. Bg2 {[%emt 0:00:00]} d5 {[%emt 0:02:10]} 4. c4 {[%emt 0:00:01]} Bd6 {[%emt 0:01:14]} 5. O-O {[%emt 0:00:19]} O-O {[%emt 0:01:56]} 6. b3 {[%emt 0:00:28]} b6 {[%emt 0:04:29]} 7. Bb2 {[%emt 0:01:36]} Nbd7 {[%emt 0:02:41]} 8. cxd5 {[%emt 0:05:55]} exd5 {[%emt 0:00:28]} 9. Nd4 {[%emt 0:00:01]} c5 {[%emt 0:10:44]} 10. Nf5 {[%emt 0:01:34]} Bb8 {[%emt 0:00:10]} 11. d4 {[%emt 0:04:00]} Bb7 {[%emt 0:02:09]} 12. Nc3 {[%emt 0:02:22]} g6 {[%emt 0:08:51]} 13. Ne3 {[%emt 0:01:04]} cxd4 {[%emt 0:00:40]} 14. Ncxd5 {[%emt 0:00:20]} Nxd5 {[%emt 0:12:04]} 15. Nxd5 {[%emt 0:01:23]} Be5 {[%emt 0:00:57]} 16. Bxd4 {[%emt 0:01:26]} Bxd4 {[%emt 0:01:19]} 17. Qxd4 {[%emt 0:00:04]} Rc8 {[%emt 0:02:27]} 18. Rfd1 {[%emt 0:01:57]} Bxd5 {[%emt 0:08:59]} 19. Qxd5 {[%emt 0:00:43]} Nc5 {[%emt 0:00:30]} 20. Qe5 {[%emt 0:09:09]} Qe8 {[%emt 0:01:38]} 21. Qxe8 {[%emt 0:00:25]} Rfxe8 {[%emt 0:00:20]} 22. e3 {[%emt 0:00:19]} a5 {[%emt 0:00:50]} 23. Rd6 {[%emt 0:01:12]} Re6 {[%emt 0:00:46]} 24. Rad1 {[%emt 0:00:09]} b5 {[%emt 0:02:24]} 25. Rd8+ {[%emt 0:00:39]} Rxd8 {[%emt 0:00:06]} 26. Rxd8+ {[%emt 0:00:12]} Kg7 {[%emt 0:00:02]} 27. Rb8 {[%emt 0:00:29]} Rd6 {[%emt 0:01:47]} 28. Rxb5 {[%emt 0:07:28]} Rd1+ {[%emt 0:00:06]} 29. Bf1 {[%emt 0:00:11]} Ne4 {[%emt 0:00:07]} 30. Kg2 {[%emt 0:00:38]} Rd2 {[%emt 0:00:21]} 31. Rxa5 {[%emt 0:10:53]} Rxf2+ {[%emt 0:00:34]} 32. Kg1 {[%emt 0:00:05]} Rb2 {[%emt 0:00:15]} 33. Bc4 {[%emt 0:07:11]} Rb1+ {[%emt 0:01:03]} 34. Kg2 {[%emt 0:00:13]} Rb2+ {[%emt 0:00:11]} 35. Kf3 {[%emt 0:02:24]} Nd2+ {[%emt 0:01:57]} 36. Kf4 {[%emt 0:00:41]} Nxc4 {[%emt 0:00:19]} 37. bxc4 {[%emt 0:00:03]} Rb4 {[%emt 0:00:05]} 38. Ra7 {[%emt 0:01:23]} Rxc4+ {[%emt 0:00:45]} 39. Kf3 {[%emt 0:00:01]} h5 {[%emt 0:00:34]} 40. a4 {[%emt 0:00:00]} h4 {[%emt 0:00:00]} 41. a5 {[%emt 0:01:15]} hxg3 {[%emt 0:02:10]} 42. hxg3 {[%emt 0:00:16]} Ra4 {[%emt 0:00:32]} 43. a6 {[%emt 0:01:31]} Kf6 {[%emt 0:03:17]} 44. Ra8 {[%emt 0:00:31]} Kg7 {[%emt 0:00:26]} 45. Ke2 {[%emt 0:00:41]} Ra3 {[%emt 0:00:52]} 46. Kf3 {[%emt 0:01:01]} Kf6 {[%emt 0:01:15]} 47. Ra7 {[%emt 0:02:03]} Ra4 {[%emt 0:00:16]} 48. e4 {[%emt 0:00:59]} Ra3+ {[%emt 0:00:13]} 49. Kg4 {[%emt 0:02:51]} Ra4 {[%emt 0:01:23]} 50. Kf4 {[%emt 0:00:14]} Ke6 {[%emt 0:00:30]} 51. Ra8 {[%emt 0:00:33]} Kf6 {[%emt 0:00:06]} 52. g4 {[%emt 0:00:45]} g5+ {[%emt 0:01:00]} 53. Ke3 {[%emt 0:00:01]} Ke6 {[%emt 0:00:50]} 54. a7 {[%emt 0:00:33]} Kf6 {[%emt 0:00:06]} 55. Kd3 {[%emt 0:02:17]} Kg7 {[%emt 0:00:24]} 56. Kc3 {[%emt 0:00:48]} f6 {[%emt 0:00:36]} 57. Kb3 {[%emt 0:00:09]} Ra1 {[%emt 0:00:29]} 58. Kc4 {[%emt 0:00:21]} Ra4+ {[%emt 0:00:31]} 59. Kb5 {[%emt 0:01:17]} Ra1 {[%emt 0:00:28]} 60. Kb6 {[%emt 0:00:06]} Rb1+ {[%emt 0:00:06]} 61. Kc6 {[%emt 0:00:11]} Rc1+ {[%emt 0:00:42]} 62. Kd6 {[%emt 0:02:34]} Rd1+ {[%emt 0:00:16]} 63. Ke6 {[%emt 0:00:11]} Ra1 {[%emt 0:00:34]} 64. Rd8 {[%emt 0:01:47]} Ra6+ {[%emt 0:00:21]} 65. Rd6 {[%emt 0:00:02]} Rxa7 {[%emt 0:00:05]} 66. Rd7+ {[%emt 0:00:12]} Rxd7 {[%emt 0:00:21]} 67. Kxd7 {[%emt 0:00:02]} Kh7 {[%emt 0:00:36]} 68. Kd6 {[%emt 0:01:32]} Kh6 {[%emt 0:00:06]} 69. Kc6 {[%emt 0:00:52]} Kg6 {[%emt 0:00:09]} 70. Kd7 {[%emt 0:00:46]} Kh7 {[%emt 0:00:26]} 71. Kc6 {[%emt 0:01:51]} Kg6 {[%emt 0:00:08]} 72. Kd5 {[%emt 0:02:45]} Kh7 {[%emt 0:00:19]} 73. Kc5 {[%emt 0:01:25]} Kg7 {[%emt 0:00:49]} 74. Kc6 {[%emt 0:00:15]} Kg6 {[%emt 0:00:04]} 75. Kc7 {[%emt 0:01:49]} Kg7 {[%emt 0:00:08]} 76. Kc8 {[%emt 0:01:01]} Kg8 {[%emt 0:00:06]} 77. Kd8 {[%emt 0:00:18]} Kh8 {[%emt 0:00:05]} 78. Ke8 {[%emt 0:05:08]} Kg8 {[%emt 0:00:07]} 79. Ke7 {[%emt 0:00:04]} Kg7 {[%emt 0:00:02]} 80. Kd6 {[%emt 0:00:13]} Kh6 {[%emt 0:00:04]} 81. Kd5 {[%emt 0:01:21]} Kh7 {[%emt 0:00:05]} 82. Kc4 {[%emt 0:01:02]} Kg6 {[%emt 0:00:24]} 83. Kd4 {[%emt 0:00:33]} Kh6 {[%emt 0:00:09]} 84. Kc5 {[%emt 0:00:16]} Kg7 {[%emt 0:00:09]} 85. Kd5 {[%emt 0:00:53]} Kh7 1/2-1/2